fUST/lending_fUST_20250418
["ID","MTS","AMOUNT","RATE_DAILY","PERIOD"]
[358345704,1744966235435,-1783.747618,0.00021,2]
[358345705,1744966235446,-1783.747618,0.00021,2]
[358345706,1744966235455,-151.0,0.00021,2]
[358345707,1744966235464,-160.754371,0.00021,2]
[358345708,1744966235473,-274.430276,0.00021,2]
[358345709,1744966235482,-160.754371,0.00021,2]
[358345710,1744966235491,-274.430276,0.00021,2]
[358345711,1744966235500,-151.0,0.00021,2]
[358345712,1744966235509,-2000.0,0.00021,4]
[358345713,1744966235518,-158.08,0.00021,2]
[358345714,1744966235667,-2101.43337073,0.0002116,2]
[358345715,1744966235677,-223.0315306,0.00021206,2]
[358345716,1744966235686,-1500.0,0.00021644,2]
[358345717,1744966235694,-23076.11319642,0.00021698,2]
[358345718,1744966235703,-839.11004726,0.00021728,2]
[358345719,1744966235711,-160.0,0.00021728,2]
[358345720,1744966235720,-160.0,0.00021728,2]
[358345721,1744966235730,-160.0,0.00021728,2]
[358345722,1744966235740,-160.0,0.00021797,3]
[358345723,1744966235750,-160.0,0.00021797,3]
[358345724,1744966235759,-160.0,0.00021797,3]
[358345725,1744966235769,-839.29847495,0.00021797,3]
[358345726,1744966235778,-1677.01049083,0.00021797,3]
[358345727,1744966235788,-160.0,0.00021797,3]
[358345728,1744966235798,-3001.76921295,0.000218,2]
[358345729,1744966235808,-151944.9158068,0.000219,7]
[358345730,1744966235817,-160.0,0.000219,7]
[358345731,1744966235827,-160.0,0.000219,7]
[358345732,1744966235836,-160.0,0.000219,7]
[358345733,1744966235845,-839.29847495,0.000219,7]
[358345734,1744966235854,-160.0,0.000219,7]
[358345735,1744966235864,-1783.747618,0.000219,2]
[358345736,1744966235873,-800.73684038,0.000219,2]
[358345797,1744966238165,-500.0,0.00018471,2]
[358345799,1744966238179,-205.93763268,0.00018471,2]
[358345802,1744966238196,-294.06236732,0.00018471,2]
[358345805,1744966238208,-500.0,0.00018471,2]
[358345807,1744966238219,-468.46816287,0.00018471,2]
[358345810,1744966238235,-66.4379394,0.00018471,2]
[358345812,1744966238249,-500.0,0.00018471,2]
[358345815,1744966238262,-500.0,0.00018471,2]
[358345817,1744966238276,-500.0,0.00018471,2]
[358345820,1744966238291,-500.0,0.00018471,2]
[358345822,1744966238306,-500.0,0.00018471,2]
[358345825,1744966238318,-500.0,0.00018471,2]
[358345827,1744966238328,-500.0,0.00018471,2]
[358345829,1744966238339,-500.0,0.00018471,2]
[358345831,1744966238352,-500.0,0.00018471,2]
[358345834,1744966238367,-500.0,0.00018471,2]
[358345836,1744966238380,-500.0,0.00018471,2]
[358345838,1744966238391,-500.0,0.00018471,2]
[358345841,1744966238404,-500.0,0.00018471,2]
[358345843,1744966238416,-174.42759742,0.00018471,2]
[358345845,1744966238427,-500.0,0.00018471,2]
[358345847,1744966238439,-500.0,0.00018471,2]
[358345850,1744966238450,-500.0,0.00018471,2]
[358345852,1744966238465,-500.0,0.00018471,2]
[358345854,1744966238476,-500.0,0.00018471,2]
[358345857,1744966238488,-500.0,0.00018471,2]
[358345859,1744966238499,-500.0,0.00018471,2]
[358345861,1744966238511,-500.0,0.00018471,2]
[358345864,1744966238522,-500.0,0.00018471,2]
[358345866,1744966238534,-500.0,0.00018471,2]
[358345868,1744966238546,-500.0,0.00018471,2]
[358345871,1744966238559,-500.0,0.00018471,2]
[358345873,1744966238571,-500.0,0.00018471,2]
[358345875,1744966238583,-194.51979665,0.00018471,2]
[358345877,1744966238594,-500.0,0.00018471,2]
[358345880,1744966238607,-500.0,0.00018471,2]
[358345882,1744966238618,-500.0,0.00018471,2]
[358345884,1744966238630,-390.71646663,0.00018471,2]
[358345887,1744966238642,-500.0,0.00018471,2]
[358345889,1744966238654,-500.0,0.00018471,2]
[358345891,1744966238665,-500.0,0.00018471,2]
[358345894,1744966238676,-500.0,0.00018471,2]
[358345896,1744966238688,-500.0,0.00018471,2]
[358345898,1744966238699,-500.0,0.00018471,2]
[358345901,1744966238713,-500.0,0.00018471,2]
[358345903,1744966238725,-500.0,0.00018471,2]
[358345905,1744966238736,-500.0,0.00018471,2]
[358345907,1744966238748,-500.0,0.00018471,2]
[358345910,1744966238761,-500.0,0.00018471,2]
[358345912,1744966238772,-177.38996013,0.00019078,2]
[358345914,1744966238784,-500.0,0.00019178,2]
[358345917,1744966238796,-500.0,0.00019178,2]
[358345919,1744966238808,-500.0,0.00019178,2]
[358345921,1744966238820,-500.0,0.00019178,2]
[358345924,1744966238832,-201.87785716,0.00019178,2]
[358345988,1744966243054,-298.12214284,0.00019178,2]
[358345989,1744966243064,-500.0,0.00019178,2]
[358345990,1744966243073,-500.0,0.00019178,2]
[358345991,1744966243083,-500.0,0.00019178,2]
[358345992,1744966243094,-500.0,0.00019178,2]
[358345993,1744966243104,-500.0,0.00019178,2]
[358345994,1744966243114,-500.0,0.00019178,2]
[358345995,1744966243123,-133.31665716,0.00019178,2]
[358346180,1744966246163,-366.68334284,0.00019178,2]
[358346182,1744966246173,-500.0,0.00019178,2]
[358346184,1744966246182,-500.0,0.00019178,2]
[358346186,1744966246191,-500.0,0.00019178,2]
[358346188,1744966246200,-500.0,0.00019178,2]
[358346190,1744966246209,-500.0,0.00019178,2]
[358346193,1744966246218,-500.0,0.00019178,2]
[358346195,1744966246228,-500.0,0.00019178,2]
[358346197,1744966246237,-500.0,0.00019178,2]
[358346199,1744966246247,-500.0,0.00019178,2]
[358346201,1744966246256,-500.0,0.00019178,2]
[358346203,1744966246266,-500.0,0.00019178,2]
[358346205,1744966246276,-500.0,0.00019178,2]
[358346207,1744966246286,-500.0,0.00019178,2]
[358346209,1744966246295,-500.0,0.00019178,2]
[358346211,1744966246305,-500.0,0.00019178,2]
[358346213,1744966246315,-500.0,0.00019178,2]
[358346215,1744966246324,-500.0,0.00019178,2]
[358346217,1744966246333,-500.0,0.00019178,2]
[358346219,1744966246343,-500.0,0.00019178,2]
[358346221,1744966246352,-500.0,0.00019178,2]
[358346223,1744966246366,-500.0,0.00019178,2]
[358346225,1744966246376,-500.0,0.00019178,2]
[358346227,1744966246386,-500.0,0.00019178,2]
[358346229,1744966246396,-500.0,0.00019178,2]
[358346231,1744966246406,-500.0,0.00019178,2]
[358346233,1744966246416,-500.0,0.00019178,2]
[358346235,1744966246426,-500.0,0.00019178,2]
[358346238,1744966246436,-500.0,0.00019178,2]
[358346240,1744966246446,-500.0,0.00019178,2]
[358346242,1744966246455,-500.0,0.00019178,2]
[358346244,1744966246464,-500.0,0.00019178,2]
[358346246,1744966246474,-493.14475022,0.00019178,2]
[358346713,1744966307354,-222.15545447,0.00018371,2]
[358346714,1744966314231,-22.79461806,0.00018371,2]
[358346715,1744966314256,-219.39069663,0.00018379,2]
[358346716,1744966330103,-245.93256,0.00018378,2]
[358346717,1744966351254,-320.57508402,0.00018011,2]
[358346718,1744966356636,-285.42281811,0.00018011,2]
[358346720,1744966383590,-175.43706077,0.00018011,2]
[358346721,1744966431088,-121.5507883,0.00018011,2]
[358346722,1744966431110,-118.49690155,0.00018194,2]
[358346723,1744966447353,-123.68841314,0.00018194,2]
[358346724,1744966447377,-80.68407437,0.00018371,2]
[358346725,1744966448105,-204.37248751,0.00018371,2]
[358346726,1744966450180,873.66729148,0.0001801,2]
[358346727,1744966457031,-167.83662476,0.00018371,2]
[358346728,1744966504361,-162.6129279,0.00018373,2]
[358346731,1744966552594,-166.27937244,0.00018094,2]
[358346732,1744966571930,-323.25000633,0.00018094,2]
[358346733,1744966580344,-45.2926614,0.00018094,2]
[358346734,1744966580367,-178.49476619,0.00018373,2]
[358346735,1744966582279,-223.78742759,0.00018373,2]
[358346736,1744966583643,179.05113875,0.0001801,2]
[358346737,1744966685380,-250.0,0.00018273,2]
[358346738,1744966695652,829.756689,0.00017816,2]
[358346739,1744966695711,-159.93038199,0.00018273,2]
[358346740,1744966702210,-150.54785803,0.00018273,2]
[358346741,1744966702235,-38.60657897,0.00018373,2]
[358346742,1744966743036,-254.89311185,0.00018373,2]
[358346743,1744966767673,-152.50429103,0.00018373,2]
[358346744,1744966772301,-181.82450005,0.00018273,2]
[358346745,1744966827635,217.6954576,0.00017538,2]
[358346746,1744967043574,251.3899291,0.00017406,2]
[358346788,1744967432047,-49.51525164,0.00018273,2]
[358346790,1744967432058,-178.409,0.00018371,2]
[358346792,1744967432067,-500.0,0.00018373,2]
[358346794,1744967432076,-500.0,0.00018373,2]
[358346796,1744967432085,-500.0,0.00018373,2]
[358346797,1744967432095,-500.0,0.00018373,2]
[358346798,1744967432104,-300.0,0.00018377,2]
[358346799,1744967432113,-300.0,0.00018377,2]
[358346800,1744967432122,-349.86950108,0.00018378,2]
[358346801,1744967432131,-500.0,0.00018378,2]
[358346802,1744967432140,-500.0,0.00018378,2]
[358346803,1744967432149,-500.0,0.00018378,2]
[358346804,1744967432158,-310.26236517,0.00018378,2]
[358346805,1744967432168,-188.2799774,0.00018378,2]
[358346806,1744967432177,-500.0,0.00018378,2]
[358346807,1744967432185,-500.0,0.00018378,2]
[358346808,1744967432195,-500.0,0.00018378,2]
[358346809,1744967432204,-500.0,0.00018378,2]
[358346810,1744967432213,-500.0,0.00018378,2]
[358346811,1744967432222,-500.0,0.00018378,2]
[358346812,1744967432230,-500.0,0.00018378,2]
[358346813,1744967432239,-500.0,0.00018378,2]
[358346814,1744967432248,-500.0,0.00018378,2]
[358346815,1744967432257,-500.0,0.00018378,2]
[358346831,1744967432454,-500.0,0.00018378,2]
[358346833,1744967432464,-500.0,0.00018378,2]
[358346835,1744967432474,-317.44275974,0.00018378,2]
[358346837,1744967432484,-500.0,0.00018378,2]
[358346839,1744967432493,-49542.57762675,0.00018379,2]
[358346848,1744967438189,-57213.21278593,0.00018379,2]
[358346900,1744967440688,-2025.63465499,0.00018379,2]
[358346904,1744967443183,-9472.48213436,0.00018379,2]
[358346914,1744967446498,-2695.42900989,0.00018379,2]
[358346915,1744967446510,-6051.60830331,0.00018379,2]
[358346916,1744967446523,-299.40146952,0.00018379,2]
[358346917,1744967491097,1790.0,0.00018,2]
[358346918,1744967502205,1650.0,0.00018,2]
[358346919,1744967623448,-176.70847501,0.00018279,2]
[358346920,1744967652430,-305.67634224,0.00018279,2]
[358346921,1744967663283,-203.224285,0.00018279,2]
[358346922,1744967668739,305.67155632,0.0001801,2]
[358346923,1744967670970,-225.03548007,0.00018279,2]
[358346924,1744967674963,-166.7946333,0.00018278,2]
[358346925,1744967683936,225.03548007,0.0001801,2]
[358346926,1744967703565,-158.57635648,0.00018277,2]
[358346927,1744967709673,-141.42364352,0.00018277,2]
[358346928,1744967709699,-95.82503031,0.00018277,2]
[358346929,1744967729196,-152.18463873,0.00018277,2]
[358346930,1744967763670,-51.99033096,0.00018277,2]
[358346931,1744967763695,-201.01662517,0.00018277,2]
[358346932,1744967781263,-98.98337483,0.00018277,2]
[358346933,1744967781289,-69.0696908,0.00018278,2]
[358346934,1744967803043,-229.05306563,0.00018179,2]
[358346935,1744967824380,-151.3129586,0.00018179,2]
[358346936,1744967827557,-40.69399753,0.00018179,2]
[358346937,1744967827587,-179.85602415,0.00018273,2]
[358346938,1744967830841,972.9397125,0.00017332,2]
[358346939,1744967846323,204.86298028,0.0001801,2]
[358346940,1744967850083,-300.0,0.00018273,2]
[358346941,1744967862229,300.0,0.0001801,2]
[358346942,1744967873140,-200.0,0.00018179,2]
[358346943,1744967881037,-151.3129586,0.00018179,2]
[358346944,1744967882884,-177.93958588,0.00018179,2]
[358346945,1744967892010,200.0,0.0001801,2]
[358346946,1744967904093,-257.03545622,0.00018179,2]
[358346947,1744967916668,-168.60478842,0.00018177,2]
[358346948,1744967920721,-178.41,0.00018177,2]
[358346949,1744967921858,257.03545622,0.0001801,2]
[358346950,1744967946095,-244.74010703,0.00018079,2]
[358346951,1744967946120,-47.15076286,0.00018177,2]
[358346952,1744967946144,-64.05726052,0.00018179,2]
[358346953,1744967952614,1168.64276407,0.000248,120]
[358346954,1744967969682,-289.42994826,0.00018179,2]
[358346955,1744968068623,-300.34316,0.00018079,2]
[358346956,1744968129445,-213.32003548,0.00018079,2]
[358346957,1744968143412,213.32003548,0.0001801,2]
[358346958,1744968250882,-77.72967161,0.00018079,2]
[358346959,1744968250905,-98.32327102,0.00018106,2]
[358346970,1744968383175,-178.76303552,0.00018179,2]
[358346996,1744968468582,250.0,0.00017279,2]
[358346999,1744968495096,409.47482243,0.0001399,2]
[358347000,1744968495286,-305.28868907,0.00018179,2]
[358347017,1744968606257,-187.73804907,0.00018079,2]
[358347018,1744968606282,-62.26195093,0.00018272,2]
[358347035,1744968632273,-160.0,0.00018079,2]
[358347036,1744968632283,-152.06246489,0.00018272,2]
[358347048,1744968638439,-1063.19535134,0.00018179,2]
[358347049,1744968638450,-85.67558418,0.00018272,2]
[358347050,1744968638460,-300.0,0.00018272,2]
[358347051,1744968638470,-151.3129586,0.00018273,2]
[358347052,1744968638480,-500.0,0.00018273,2]
[358347053,1744968638490,-500.0,0.00018273,2]
[358347054,1744968638500,-500.0,0.00018273,2]
[358347055,1744968638510,-500.0,0.00018273,2]
[358347056,1744968638520,-500.0,0.00018273,2]
[358347057,1744968638532,-9.04432666,0.00018278,2]
[358347058,1744968638541,-500.0,0.00018278,2]
[358347059,1744968638551,-500.0,0.00018278,2]
[358347060,1744968638561,-201.93808442,0.00018278,2]
[358347061,1744968638571,-500.0,0.00018278,2]
[358347062,1744968638581,-418.59044413,0.00018278,2]
[358347063,1744968638591,-500.0,0.00018278,2]
[358347064,1744968638601,-500.0,0.00018278,2]
[358347065,1744968638611,-500.0,0.00018278,2]
[358347066,1744968638620,-156.25958061,0.00018278,2]
[358347067,1744968638630,-500.0,0.00018278,2]
[358347068,1744968638640,-500.0,0.00018278,2]
[358347069,1744968638650,-500.0,0.00018278,2]
[358347070,1744968638660,-500.0,0.00018278,2]
[358347071,1744968638669,-50715.73201497,0.00018279,2]
[358347072,1744968638678,-360.37560868,0.00018279,3]
[358347073,1744968638688,-178.41,0.00018279,2]
[358347074,1744968638698,-370000.0,0.00018279,2]
[358347075,1744968638707,-207.4,0.00018491,2]
[358347076,1744968638717,-237.72142115,0.00018865,2]
[358347077,1744968638727,-1000.0,0.00018904,2]
[358347078,1744968638737,-132163.56278827,0.00019,2]
[358347079,1744968638746,-2320.83230404,0.000191,2]
[358347080,1744968638756,-500.0,0.00019178,2]
[358347081,1744968638766,-500.0,0.00019178,2]
[358347082,1744968638776,-500.0,0.00019178,2]
[358347083,1744968638786,-500.0,0.00019178,2]
[358347084,1744968638796,-500.0,0.00019178,2]
[358347085,1744968638805,-500.0,0.00019178,2]
[358347086,1744968638815,-500.0,0.00019178,2]
[358347087,1744968638825,-500.0,0.00019178,2]
[358347088,1744968638835,-500.0,0.00019178,2]
[358347089,1744968638845,-500.0,0.00019178,2]
[358347090,1744968638857,-500.0,0.00019178,2]
[358347091,1744968638867,-500.0,0.00019178,2]
[358347092,1744968638877,-500.0,0.00019178,2]
[358347093,1744968638887,-500.0,0.00019178,2]
[358347094,1744968638896,-500.0,0.00019178,2]
[358347095,1744968638906,-500.0,0.00019178,2]
[358347096,1744968638916,-500.0,0.00019178,2]
[358347097,1744968638926,-500.0,0.00019178,2]
[358347098,1744968638936,-500.0,0.00019178,2]
[358347099,1744968638945,-500.0,0.00019178,2]
[358347100,1744968638955,-500.0,0.00019178,2]
[358347101,1744968638965,-500.0,0.00019178,2]
[358347102,1744968638975,-500.0,0.00019178,2]
[358347103,1744968638984,-500.0,0.00019178,2]
[358347104,1744968638994,-157.63993724,0.00019178,2]
[358347105,1744968639005,-500.0,0.00019178,2]
[358347106,1744968639015,-500.0,0.00019178,2]
[358347107,1744968639025,-500.0,0.00019178,2]
[358347108,1744968639035,-500.0,0.00019178,2]
[358347109,1744968639044,-500.0,0.00019178,2]
[358347110,1744968639053,-500.0,0.00019178,2]
[358347111,1744968639063,-500.0,0.00019178,2]
[358347112,1744968639072,-500.0,0.00019178,2]
[358347113,1744968639082,-500.0,0.00019178,2]
[358347114,1744968639091,-500.0,0.00019178,2]
[358347115,1744968639101,-500.0,0.00019178,2]
[358347116,1744968639110,-500.0,0.00019178,2]
[358347117,1744968639119,-500.0,0.00019178,2]
[358347118,1744968639129,-500.0,0.00019178,2]
[358347119,1744968639139,-500.0,0.00019178,2]
[358347120,1744968639149,-500.0,0.00019178,2]
[358347121,1744968639158,-500.0,0.00019178,2]
[358347122,1744968639168,-500.0,0.00019178,2]
[358347123,1744968639178,-500.0,0.00019178,2]
[358347124,1744968639187,-500.0,0.00019178,2]
[358347125,1744968639197,-500.0,0.00019178,2]
[358347126,1744968639206,-500.0,0.00019178,2]
[358347127,1744968639215,-500.0,0.00019178,2]
[358347128,1744968639225,-500.0,0.00019178,2]
[358347129,1744968639235,-500.0,0.00019178,2]
[358347130,1744968639244,-500.0,0.00019178,2]
[358347131,1744968639254,-500.0,0.00019178,2]
[358347132,1744968639275,-500.0,0.00019178,2]
[358347133,1744968639285,-500.0,0.00019178,2]
[358347134,1744968639295,-500.0,0.00019178,2]
[358347135,1744968639304,-500.0,0.00019178,2]
[358347136,1744968639315,-500.0,0.00019178,2]
[358347137,1744968639326,-550.0,0.00019178,2]
[358347138,1744968639336,-500.0,0.00019178,2]
[358347139,1744968639346,-500.0,0.00019178,2]
[358347140,1744968639356,-500.0,0.00019178,2]
[358347141,1744968639365,-500.0,0.00019178,2]
[358347142,1744968639375,-151.0,0.00019178,2]
[358347143,1744968639384,-300.0,0.00019178,2]
[358347144,1744968639395,-189.989,0.00019218,2]
[358347145,1744968639404,-166.655,0.00019218,2]
[358347146,1744968639414,-707.0,0.00019368,2]
[358347147,1744968639424,-544.0,0.00019368,2]
[358347148,1744968639434,-2248.0,0.00019368,2]
[358347149,1744968639444,-402.0,0.00019368,2]
[358347150,1744968639454,-500.0,0.0001938,2]
[358347151,1744968639464,-500.0,0.0001958,2]
[358347152,1744968639472,-2320.83230379,0.00019762,2]
[358347153,1744968639481,-270.04689188,0.0001986,2]
[358347154,1744968639490,-420.0,0.00019931,2]
[358347155,1744968639500,-200.0,0.0002,2]
[358347156,1744968639510,-2000.0,0.0002,4]
[358347157,1744968639520,-420.0,0.00020028,2]
[358347158,1744968639530,-552.08330925,0.0002018,2]
[358347159,1744968639540,-500.000001,0.0002028,2]
[358347160,1744968639550,-2320.83230379,0.00020624,2]
[358347161,1744968639559,-160.0,0.00020653,2]
[358347162,1744968639569,-420.40766787,0.00020653,2]
[358347163,1744968639579,-12559.7366029,0.00020653,2]
[358347164,1744968639589,-160.0,0.00020653,2]
[358347165,1744968639599,-160.0,0.00020653,2]
[358347166,1744968639608,-160.0,0.00020653,2]
[358347167,1744968639619,-839.29847495,0.00020653,2]
[358347168,1744968639628,-160.0,0.00020653,2]
[358347169,1744968639638,-776.552,0.00020743,2]
[358347170,1744968639648,-426.87,0.000208,2]
[358347171,1744968639657,-600.0,0.00020822,2]
[358347172,1744968639667,-158.07,0.00021,2]
[358347173,1744968639677,-200.0,0.00021,2]
[358347174,1744968639687,-2000.0,0.00021,4]
[358347175,1744968639697,-600.0,0.00021024,2]
[358347176,1744968639707,-600.0,0.00021243,2]
[358347177,1744968639717,-151.0,0.000214,3]
[358347178,1744968639727,-600.0,0.00021462,2]
[358347179,1744968639737,-2320.83230379,0.00021486,3]
[358347180,1744968639746,-868.94436656,0.00021681,2]
[358347181,1744968639756,-23076.11319642,0.00021698,2]
[358347182,1744968639766,-160.0,0.00021717,2]
[358347183,1744968639776,-587.0,0.00021741,2]
[358347184,1744968639786,-931.1405812,0.0002179,2]
[358347185,1744968639796,-839.29847495,0.00021797,3]
[358347186,1744968639805,-12559.7366029,0.00021797,3]
[358347187,1744968639815,-160.0,0.00021797,3]
[358347188,1744968639825,-160.0,0.00021797,3]
[358347189,1744968639835,-160.0,0.00021797,3]
[358347190,1744968639845,-151.0,0.000218,3]
[358347191,1744968639856,-177.38996013,0.00021899,2]
[358347192,1744968639867,-839.29847495,0.000219,7]
[358347193,1744968639877,-12559.7366029,0.000219,7]
[358347194,1744968639887,-160.0,0.000219,7]
[358347195,1744968639896,-160.0,0.000219,7]
[358347196,1744968639912,-160.0,0.000219,7]
[358347197,1744968639922,-200.0,0.000219,2]
[358347198,1744968639932,-500.0,0.00021917,2]
[358347199,1744968639942,-500.0,0.00021917,2]
[358347200,1744968639952,-500.0,0.00021917,2]
[358347201,1744968639962,-500.0,0.00021917,2]
[358347202,1744968639973,-617.17,0.00021917,2]
[358347203,1744968639983,-500.0,0.00021917,2]
[358347204,1744968639992,-501.43943746,0.00021917,2]
[358347205,1744968640001,-500.0,0.00021917,2]
[358347206,1744968640010,-1522.07,0.00021917,2]
[358347207,1744968640021,-416.82774774,0.00021917,2]
[358347208,1744968640031,-365.49989914,0.00021917,2]
[358347209,1744968640041,-501.6148361,0.00021917,2]
[358347210,1744968640054,-636.52641486,0.00021917,2]
[358347211,1744968640063,-1075.87,0.00021917,2]
[358347212,1744968640072,-697.58,0.00021917,2]
[358347213,1744968640082,-505.17638307,0.00021917,2]
[358347214,1744968640091,-536.63,0.00021917,2]
[358347215,1744968640100,-500.0,0.00021917,2]
[358347216,1744968640109,-500.0,0.00021917,2]
[358347217,1744968640117,-1265.68,0.00021917,2]
[358347218,1744968640125,-500.0,0.00021917,2]
[358347219,1744968640133,-506.27345812,0.00021917,2]
[358347220,1744968640142,-177.71749264,0.00021917,2]
[358347222,1744968640151,-502.97807372,0.00021917,2]
[358347223,1744968640161,-500.0,0.00021917,2]
[358347224,1744968640170,-500.0,0.00021917,2]
[358347225,1744968640180,-629.62972673,0.00021917,2]
[358347226,1744968640190,-633.54,0.00021917,2]
[358347227,1744968640199,-500.0,0.00021917,2]
[358347228,1744968640209,-500.0,0.00021917,2]
[358347229,1744968640219,-500.0,0.00021917,2]
[358347230,1744968640229,-500.0,0.00021917,2]
[358347231,1744968640238,-500.0,0.00021917,2]
[358347232,1744968640248,-500.0,0.00021917,2]
[358347233,1744968640257,-504.79266609,0.00021917,2]
[358347234,1744968640267,-500.0,0.00021917,2]
[358347235,1744968640276,-500.8663039,0.00021917,2]
[358347236,1744968640286,-500.0,0.00021917,2]
[358347237,1744968640296,-504.17261386,0.00021917,2]
[358347238,1744968640306,-507.18133275,0.00021917,2]
[358347239,1744968640315,-503.6455182,0.00021917,2]
[358347240,1744968640325,-503.05050752,0.00021917,2]
[358347241,1744968640334,-500.0,0.00021917,2]
[358347242,1744968640344,-501.66952976,0.00021917,2]
[358347243,1744968640354,-502.01898174,0.00021917,2]
[358347244,1744968640363,-500.0,0.00021917,2]
[358347245,1744968640373,-528.52734522,0.00021917,2]
[358347246,1744968640383,-500.0,0.00021917,2]
[358347247,1744968640392,-1121.51,0.00021917,2]
[358347248,1744968640402,-502.52666633,0.00021917,2]
[358347249,1744968640411,-500.0,0.00021917,2]
[358347250,1744968640421,-506.50825724,0.00021917,2]
[358347251,1744968640431,-500.0,0.00021917,2]
[358347252,1744968640441,-501.81187824,0.00021917,2]
[358347255,1744968640450,-665.95,0.00021917,2]
[358347256,1744968640640,-507.77549767,0.00021917,2]
[358347257,1744968640649,-500.0,0.00021917,2]
[358347258,1744968640659,-500.0,0.00021917,2]
[358347259,1744968640668,-501.92078785,0.00021917,2]
[358347260,1744968640678,-555.12609341,0.00021917,2]
[358347261,1744968640687,-500.0,0.00021917,2]
[358347262,1744968640696,-500.0,0.00021917,2]
[358347263,1744968640706,-500.0,0.00021917,2]
[358347264,1744968640715,-500.0,0.00021917,2]
[358347265,1744968640724,-500.0,0.00021917,2]
[358347266,1744968640733,-500.0,0.00021917,2]
[358347267,1744968640743,-501.82275792,0.00021917,2]
[358347268,1744968640752,-151.0,0.00021917,2]
[358347269,1744968640762,-170.50875,0.00021917,2]
[358347270,1744968640772,-161.26563673,0.00021917,2]
[358347271,1744968640781,-506.08059371,0.00021917,2]
[358347272,1744968640790,-538.89587279,0.00021917,2]
[358347273,1744968640799,-500.0,0.00021917,2]
[358347274,1744968640809,-500.0,0.00021917,2]
[358347275,1744968640818,-505.48083353,0.00021917,2]
[358347276,1744968640828,-509.21186347,0.00021917,2]
[358347277,1744968640838,-246.76921489,0.00021917,2]
[358347278,1744968640847,-652.12,0.00021917,2]
[358347279,1744968640860,-500.46124416,0.00021917,2]
[358347280,1744968640869,-503.57611711,0.00021917,2]
[358347281,1744968640878,-500.0,0.00021917,2]
[358347282,1744968640888,-505.67493771,0.00021917,2]
[358347283,1744968640898,-507.00756375,0.00021917,2]
[358347284,1744968640908,-634.42,0.00021917,2]
[358347285,1744968640918,-513.86153909,0.00021917,2]
[358347286,1744968640928,-500.0,0.00021917,2]
[358347287,1744968640938,-1368.47,0.00021917,2]
[358347288,1744968640948,-500.0,0.00021917,2]
[358347289,1744968640958,-500.0,0.00021917,2]
[358347290,1744968640968,-500.0,0.00021917,2]
[358347291,1744968640977,-500.0,0.00021917,2]
[358347292,1744968640987,-499.71138307,0.00021917,2]
[358347293,1744968640997,-506.25112529,0.00021917,2]
[358347294,1744968641007,-500.0,0.00021917,2]
[358347295,1744968641017,-500.0,0.00021917,2]
[358347296,1744968641027,-500.0,0.00021917,2]
[358347297,1744968641037,-500.0,0.00021917,2]
[358347298,1744968641047,-500.0,0.00021917,2]
[358347299,1744968641056,-502.99518168,0.00021917,2]
[358347300,1744968641064,-500.0,0.00021917,2]
[358347301,1744968641073,-503.57523658,0.00021917,2]
[358347302,1744968641082,-516.21161918,0.00021917,2]
[358347303,1744968641091,-500.0,0.00021917,2]
[358347304,1744968641099,-681.25,0.00021917,2]